{"text_format":"3","workbook":"xlsx","n_sheets":2,"sheets":["Liste des quêtes","Magilithe-Mégalithes"],"not_rendered":{"images":1,"macros":1,"defined_names":1},"read":"whole","date_system":"1900"}

{"sheet":"Liste des quêtes","index":0,"n_rows":212,"n_cols":13,"rows_kept":212}
[{"$nulls":7},"Version fichier : 25/09/2018",null,null,"A faire",":",{"$f":" COUNTIF(C:C,K1) & \"/\" & COUNTA(C:C) -1","v":"209/209"}]
[null,"N°","Etat","Monde","Zone","Sous-zone (Iles, …)","Lieu","Quête","Quête (nom anglais)",null,"En cours",":",{"$f":"COUNTIF(C:C,K2) & \"/\" & COUNTA(C:C) -1","v":"0/209"}]
[{"$nulls":10},"Terminé",":",{"$f":"COUNTIF(C:C,K3) & \"/\" & COUNTA(C:C) -1","v":"0/209"}]
[null,1,"A faire","Lapis","Grandshelt","Grandshelt","Ville de Mitra","SOS yeux secs","Succor for Sore Eyes"]
[null,{"$f":"B4+1","v":2},"A faire","Lapis","Grandshelt","Grandshelt","Ville de Mitra","Les rêves d'un armurier","A Hello to Arms",null,"Monde :",null,"Lapis"]
[null,{"$f":"B5+1","v":3},"A faire","Lapis","Grandshelt","Grandshelt","Ville de Mitra","Chasse au loup","Bleeder of the Pack",null,"A faire",":",{"$f":"COUNTIFS(C:C,K6,D:D,M$5) & \"/\" & COUNTIF(D:D,M$5)","v":"151/151"}]
[null,4,"A faire","Lapis","Grandshelt","Grandshelt","Ville de Mitra","Le livre des secrets","Secrets Unearthed",null,"En cours",":",{"$f":"COUNTIFS(C:C,K7,D:D,M$5) & \"/\" & COUNTIF(D:D,M$5)","v":"0/151"}]
[null,5,"A faire","Lapis","Grandshelt","Grandshelt","Ville de Mitra","En un beau jour d'ennui","Feathers in Your Cap",null,"Terminé",":",{"$f":"COUNTIFS(C:C,K8,D:D,M$5) & \"/\" & COUNTIF(D:D,M$5)","v":"0/151"}]
[null,6,"A faire","Lapis","Grandshelt","Grandshelt","Ville de Mitra","Le journal intime","For My Eyes Only"]
[null,7,"A faire","Lapis","Grandshelt","Grandshelt","Grandshelt, capitale royale","Souvenirs d'une mère","Pendant Dependent",null,"Monde :",null,"Vortex"]
[null,8,"A faire","Lapis","Grandshelt","Grandshelt","Grandshelt, capitale royale","L'aéronef miniature","Return Flight",null,"A faire",":",{"$f":"COUNTIFS(C:C,K11,D:D,M$10) & \"/\" & COUNTIF(D:D,M$10)","v":"13/13"}]
[null,9,"A faire","Lapis","Grandshelt","Grandshelt","Grandshelt, capitale royale","Partage des tâches","Caught by Supplies",null,"En cours",":",{"$f":"COUNTIFS(C:C,K12,D:D,M$10) & \"/\" & COUNTIF(D:D,M$10)","v":"0/13"}]
[null,10,"A faire","Lapis","Grandshelt","Grandshelt","Grandshelt, capitale royale","L'homme à la cicatrice","There's a Scaaar-maaan...",null,"Terminé",":",{"$f":"COUNTIFS(C:C,K13,D:D,M$10) & \"/\" & COUNTIF(D:D,M$10)","v":"0/13"}]
[null,11,"A faire","Lapis","Grandshelt","Grandshelt","Grandshelt, capitale royale","Le Colisée des grands","Road to the Colosseum"]
[null,12,"A faire","Lapis","Grandshelt","Grandshelt","Grandshelt, capitale royale","Jamais sans mon flambos","A Boy and His Slime",null,"Monde :",null,"Paladia"]
[null,13,"A faire","Lapis","Grandshelt","Grandshelt","Grandshelt, capitale royale","Le rôdeur des ruines","Ruin Subduin'",null,"A faire",":",{"$f":"COUNTIFS(C:C,K16,D:D,M$15) & \"/\" & COUNTIF(D:D,M$15)","v":"45/45"}]
[null,14,"A faire","Lapis","Grandshelt","Grandshelt","Grandshelt, capitale royale","Le trésor du barde","The Unlettered Poet",null,"En cours",":",{"$f":"COUNTIFS(C:C,K17,D:D,M$15) & \"/\" & COUNTIF(D:D,M$15)","v":"0/45"}]
[null,15,"A faire","Lapis","Grandshelt","Grandshelt","Grandshelt, capitale royale","Un chant d'amour","Ode to Boy",null,"Terminé",":",{"$f":"COUNTIFS(C:C,K18,D:D,M$15) & \"/\" & COUNTIF(D:D,M$15)","v":"0/45"}]
[null,16,"A faire","Lapis","Grandshelt","Grandshelt","Grandshelt, capitale royale","Une idée de génie","Prowl Movements"]
[null,17,"A faire","Lapis","Grandshelt","Grandshelt","Grandshelt, capitale royale","Réservé aux membres","For Members Only"]
[null,18,"A faire","Lapis","Grandshelt","Grandshelt","Grandshelt, capitale royale","Où est l'homme mystère ?","Whither Townsman?"]
[null,19,"A faire","Lapis","Grandshelt","Grandshelt","Ville Portuaire de Lodin","Le devoir d'un chevalier","A Knight's Duty"]
[null,20,"A faire","Lapis","Grandshelt","Grandshelt","Ville Portuaire de Lodin","Danger sur la route","Demon Tollbooth"]
[null,21,"A faire","Lapis","Grandshelt","Grandshelt","Ville Portuaire de Lodin","L'être qui vous manque...","Rime of the Absent Mariner"]
[null,22,"A faire","Lapis","Grandshelt","Grandshelt","Ville Portuaire de Lodin","Un fruit pour une vie","Fruit...or Death?"]
[null,23,"A faire","Lapis","Grandshelt","Grandshelt","Ville Portuaire de Lodin","Le blues du forgeron","Muse of the Anvil"]
[null,24,"A faire","Lapis","Grandshelt","Grandshelt","Ville Portuaire de Lodin","Préparatifs prolongés","Hello? Sailor?"]
[null,25,"A faire","Lapis","Grandshelt","Grandshelt","Ville Portuaire de Lodin","Une crise volcanique","Bombs Away"]
[null,26,"A faire","Lapis","Grandshelt","Grandshelt","Ville Portuaire de Lodin","Vivre en harmonie","Too Cute to Die"]
[null,27,"A faire","Lapis","Grandshelt","Grandshelt","Ville Portuaire de Lodin","Coursier en herbe","Courier Career"]
[null,28,"A faire","Lapis","Grandshelt","Grandshelt","Port d'Ordol","Les pierres de feu","Pest Control in Hell"]
[null,29,"A faire","Lapis","Grandshelt","Lanzelt","Ville Portuaire de Lydira","L'art pour l'art","Patron of the Arts"]
[null,30,"A faire","Lapis","Grandshelt","Lanzelt","Ville Portuaire de Lydira","L'ultime souvenir","Memento of My Sister"]
[null,31,"A faire","Lapis","Grandshelt","Lanzelt","Ville Portuaire de Lydira","Un rêve prémonitoire","The Hungers Game"]
[null,32,"A faire","Lapis","Grandshelt","Lanzelt","Village de Kol","Une mère inquiète","Nuts Without My Daughter"]
[null,33,"A faire","Lapis","Grandshelt","Lanzelt","Village de Kol","Le marteau magique","Hammer Time"]
[null,34,"A faire","Lapis","Grandshelt","Lanzelt","Village de Kol","Au boulot !","Don't Stop! (Hammer Time)"]
[null,35,"A faire","Lapis","Grandshelt","Lanzelt","Village de Kol","Sentiments éternels","Constant Devotion"]
[null,36,"A faire","Lapis","Grandshelt","Lanzelt","Village de Kol","Neutralisation en règle","Catastrophi-Kol"]
[null,37,"A faire","Lapis","Grandshelt","Lanzelt","Village de Kol","Sables mortels","Sand Hassle"]
[null,38,"A faire","Lapis","Grandshelt","Lanzelt","Grandport","La paix du port","Preserving the Peace"]
[null,39,"A faire","Lapis","Grandshelt","Lanzelt","Grandport","Un matériau indestructible","Cryst Almighty"]
[null,40,"A faire","Lapis","Grandshelt","Lanzelt","Grandport","Rêves envieux","Lootiful Dreamer"]
[null,41,"A faire","Lapis","Grandshelt","Lanzelt","Grandport","La manie des minerais","Ore Inspiring"]
[null,42,"A faire","Lapis","Grandshelt","Lanzelt","Grandport","Disparue en montagne","Missing on the Mountain"]
[null,43,"A faire","Lapis","Grandshelt","Lanzelt","Grandport","Le masque du héros","Hero Mask Task"]
[null,44,"A faire","Lapis","Grandshelt","Lanzelt","Grandport","Le plat parfait","Niche Dish Wish"]
[null,45,"A faire","Lapis","Grandshelt","Lanzelt","Grandport","Un ami en danger","It's a Dog's Death"]
[null,46,"A faire","Lapis","Grandshelt","Lanzelt","Grandport","Le trésor du désert","Operation Desert Treasure"]
[null,47,"A faire","Lapis","Grandshelt","Lanzelt","Grandport","Le dernier ninja","Ninja Challenge"]
[null,48,"A faire","Lapis","Grandshelt","Lanzelt","Grandport","L'oreiller de mes rêves","Pillow of Your Dreams"]
[null,49,"A faire","Lapis","Grandshelt","Lanzelt","Hautes terres de Lanzelt - Exploration","La dernière lettre","The Last Letter"]
[null,50,"A faire","Lapis","Grandshelt","Lanzelt","Village caché de Marlo","Le monstre des neiges","The Wolfsfang Terror"]
[null,51,"A faire","Lapis","Grandshelt","Lanzelt","Village caché de Marlo","De nouveaux horizons","Outside In"]
[null,52,"A faire","Lapis","Grandshelt","Lanzelt","Village caché de Marlo","Le bracelet brisé","My Shameful Naked Wrist"]
[null,53,"A faire","Lapis","Grandshelt","Lanzelt","Village caché de Marlo","La saison des monstres","The Icemen Overcometh"]
[null,54,"A faire","Lapis","Grandshelt","Lanzelt","Village caché de Marlo","Les errements du passé","Sins of the Past"]
[null,55,"A faire","Lapis","Grandshelt","Kolobos","Port Fantôme de Kolobos","Résine anti zombies","Zombie Repellent"]
[null,56,"A faire","Lapis","Grandshelt","Kolobos","Port Fantôme de Kolobos","Archives d'une tragédie","Unfinished Business"]
[null,57,"A faire","Lapis","Grandshelt","Kolobos","Canyon de Golzas - Exploration","L'héritage d'un voleur","A Thief's Legacy"]
[null,58,"A faire","Lapis","Grandshelt","Kolobos","Ville de Felicitas","Mon alter ego","Double Trouble"]
[null,59,"A faire","Lapis","Grandshelt","Kolobos","Ville de Felicitas","L'éclair du jugement","Thunder Enlightening"]
[null,60,"A faire","Lapis","Grandshelt","Kolobos","Ville de Felicitas","Une menace en armure","A Burden of Beasts"]
[null,61,"A faire","Lapis","Grandshelt","Kolobos","Ville de Felicitas","Papiers, s'il vous plaît","Paper Chase"]
[null,62,"A faire","Lapis","Grandshelt","Kolobos","Ville de Felicitas","Des cristaux pour la peau","Shock Therapy"]
[null,63,"A faire","Lapis","Grandshelt","Kolobos","Ville de Felicitas","La chasse aux trésors","Location, Location, Location"]
[null,64,"A faire","Lapis","Grandshelt","Kolobos","Ville de Felicitas","De la chance en amour","Charmless Man"]
[null,65,"A faire","Lapis","Grandshelt","Kolobos","Ville de Felicitas","C'est de la chance ça ?","Charm Offensive"]
[null,66,"A faire","Lapis","Grandshelt","Kolobos","Ville de Felicitas","La clé mystérieuse","The Key Keeper Caper"]
[null,{"$f":"B69+1","v":67},"A faire","Lapis","Grandshelt","Kolobos","Ville de Felicitas","Un cauchemar sans fin","A Neverending Nightmare"]
[null,68,"A faire","Lapis","Dirnardo","Dirnardo","Ville Industrielle de Dilmagia","A la recherche d'un emploi","Job Hunting"]
[null,69,"A faire","Lapis","Dirnardo","Dirnardo","Ville Industrielle de Dilmagia","Une lettre sans destinataire","To Whom Is This?"]
[null,70,"A faire","Lapis","Dirnardo","Dirnardo","Ville Industrielle de Dilmagia","La bonne paye","A Fair Day's Wage"]
[null,71,"A faire","Lapis","Dirnardo","Dirnardo","Ville Industrielle de Dilmagia","Faites attention à vos outils","Mind Your Wares"]
[null,72,"A faire","Lapis","Dirnardo","Dirnardo","Ville Industrielle de Dilmagia","Recherche travailleur désespérément","Help Wanted"]
[null,73,"A faire","Lapis","Dirnardo","Dirnardo","Ville Industrielle de Dilmagia","Régler de vieilles rancunes","Settling the Score"]
[null,74,"A faire","Lapis","Dirnardo","Dirnardo","Ville Industrielle de Dilmagia","Pour le plus beau jour de sa vie","For Her Special Day"]
[null,75,"A faire","Lapis","Dirnardo","Dirnardo","Village d'Ambel","La cavalerie arrive","When the Knight Comes"]
[null,76,"A faire","Lapis","Dirnardo","Dirnardo","Village d'Ambel","Invasion de monstres ?!","Invasion Afoot!"]
[null,77,"A faire","Lapis","Dirnardo","Dirnardo","Village d'Ambel","La queue d'un animal","An Animal's Tale"]
[null,78,"A faire","Lapis","Dirnardo","Dirnardo","Ville de Kolts","L'espion qui s'est tiré","M.I.A."]
[null,79,"A faire","Lapis","Dirnardo","Dirnardo","Ville de Kolts","Un voleur un peu particulier","Not Your Normal Thief"]
[null,80,"A faire","Lapis","Dirnardo","Dirnardo","Ville de Kolts","Plus précieux que la vie","More Important Than Life Itself"]
[null,81,"A faire","Lapis","Dirnardo","Dirnardo","Forge des nains - Exploration","Un marchand un peu trop zélé","Lost in Dedication"]
[null,82,"A faire","Lapis","Dirnardo","Dirnardo","Usine d'aéronefs de Mobrise - Exploration","A chacun la sienne","To Each His Own"]
[null,83,"A faire","Lapis","Dirnardo","Dirnardo","Temple du vent - Exploration","Un sentiment éternel","Timeless Memories"]
[null,84,"A faire","Lapis","Olderion","Olderion","Ville aquatique d'Olderion","La famille d'abord","Family First"]
[null,85,"A faire","Lapis","Olderion","Olderion","Ville aquatique d'Olderion","Pour une naissance réussie !","Gotta Love the Baby!"]
[null,86,"A faire","Lapis","Olderion","Olderion","Ville aquatique d'Olderion","Le mythe de la sécurité","A Legend of Peace"]
[null,87,"A faire","Lapis","Olderion","Olderion","Ville aquatique d'Olderion","Où est l'homme mystère ? Le retour","Whither Townsman, Again?"]
[null,88,"A faire","Lapis","Olderion","Olderion","Ville aquatique d'Olderion","La demande d'un homme","What a Man Wants"]
[null,89,"A faire","Lapis","Olderion","Olderion","Ville aquatique d'Olderion","Une chevalière de Grandshelt","A Knight of Grandshelt"]
[null,90,"A faire","Lapis","Olderion","Olderion","Lac Dorr - Exploration","Travaux d'intérêt général","Community Service"]
[null,91,"A faire","Lapis","Olderion","Olderion","Village d'Amore","L'ennemi des vétérans","Foe of the Veterans"]
[null,92,"A faire","Lapis","Olderion","Olderion","Village d'Amore","Offrande au dieu de l'Eau","Gift to the God of Water"]
[null,93,"A faire","Lapis","Olderion","Olderion","Village d'Amore","L'eau suprême","Aqua Supreme"]
[null,94,"A faire","Lapis","Olderion","Olderion","Village d'Amore","Fierté de sanglier","Boarish Pride"]
[null,95,"A faire","Lapis","Olderion","Olderion","Vaisseau fantôme - Exploration","Louées soit les profondeurs","Honor to the Deep"]
[null,96,"A faire","Lapis","Zoldaad","Zoldaad","Cachette de Raven","Quand on veut, on peut","Those Who Can, Do"]
[null,97,"A faire","Lapis","Zoldaad","Zoldaad","Cachette de Raven","L'inspection du temple","Survey the Shrine"]
[null,98,"A faire","Lapis","Zoldaad","Zoldaad","Cachette de Raven","L'impression d'être espionné","Scent of a Spy"]
[null,99,"A faire","Lapis","Zoldaad","Zoldaad","Cachette de Raven","Retour des terres stériles","Taking Back the Wastelands"]
[null,100,"A faire","Lapis","Zoldaad","Zoldaad","Volcan en éruption - Exploration","Des provisions à livrer","Providing Provisions"]
[null,101,"A faire","Lapis","Zoldaad","Zoldaad","Ville dévastée","Prémonitions de mauvaise augure","Wicked Premonition"]
[null,102,"A faire","Lapis","Zoldaad","Zoldaad","Ville dévastée","Une épice plutôt dangereuse","A Nice Spice"]
[null,103,"A faire","Lapis","Zoldaad","Zoldaad","Centre-ville de Zoldaad","Nous, les humains","As Humans"]
[null,104,"A faire","Lapis","Zoldaad","Zoldaad","Centre-ville de Zoldaad","Perdu de chez perdu","Misplaced Order"]
[null,105,"A faire","Lapis","Zoldaad","Zoldaad","Centre-ville de Zoldaad","Ami perdu","Lost Friend"]
[null,106,"A faire","Lapis","Zoldaad","Zoldaad","Centre-ville de Zoldaad","Couché, sale bête !","Naughty Pet"]
[null,107,"A faire","Lapis","Zoldaad","Zoldaad","Centre-ville de Zoldaad","Vert de la nature","Green of the Planet"]
[null,108,"A faire","Lapis","Mysidia","Nation magique de Mysidia","Forêt enneigée - exploration","Six pieds sous terre","Buried Below"]
[null,109,"A faire","Lapis","Mysidia","Nation magique de Mysidia","Nation magique de Mysidia","Ballet de monstres a mysidia","Monsters 'round Mysidia"]
[null,110,"A faire","Lapis","Mysidia","Nation magique de Mysidia","Nation magique de Mysidia","Une prévision qui a vu juste","Perfect Forecast?"]
[null,111,"A faire","Lapis","Mysidia","Nation magique de Mysidia","Nation magique de Mysidia","Une glace dure comme de l'acier","Ice of Steel"]
[null,112,"A faire","Lapis","Mysidia","Nation magique de Mysidia","Nation magique de Mysidia","Disciple de mage","Pupil of the Magi"]
[null,113,"A faire","Lapis","Mysidia","Nation magique de Mysidia","Nation magique de Mysidia","Nostalgie","Remembering the Days of Ole"]
[null,114,"A faire","Lapis","Mysidia","Nation magique de Mysidia","Bilbiothèque magique - exploration","Anneau de l'oubli","Ring of Oblivion"]
[null,115,"A faire","Lapis","Mysidia","Nation magique de Mysidia","Tour de Mysidia - exploration","Equipement favori","Beloved Equipment"]
[null,116,"A faire","Lapis","Mysidia","Nation magique de Mysidia","Cachette des mages","Un invite inattendu","The Uninvited"]
[null,117,"A faire","Lapis","Mysidia","Nation magique de Mysidia","Cachette des mages","Rembourser sa dette","A Small Repayment"]
[null,118,"A faire","Lapis","Mysidia","Nation magique de Mysidia","Cachette des mages","Une seule lettre","A Lone Letter"]
[null,119,"A faire","Lapis","Mysidia","Nation magique de Mysidia","Cachette des mages","Bien mal acquis...","Snatched Away"]
[null,120,"A faire","Lapis","Gronoa","Gronoa","Société en ruine - exploration","Un esprit fantomatique ?","Phantom Spirit?"]
[null,121,"A faire","Lapis","Gronoa","Gronoa","Entée du temple de Gronoa - exploration","Un lien éternel","Bonds Forever"]
[null,122,"A faire","Lapis","Gronoa","Gronoa","Entée du temple de Gronoa - exploration","Deux guerriers de la mer","Dual Wielder of the Sea"]
[null,123,"A faire","Lapis","Gronoa","Gronoa","Entée du temple de Gronoa - exploration","Les traces du passé","Footprints into the Past"]
[null,124,"A faire","Lapis","Gronoa","Gronoa","Ville souterraine de Gaberada","Offrande aux dieux","Offering to the Gods"]
[null,125,"A faire","Lapis","Gronoa","Gronoa","Ville souterraine de Gaberada","Cérémonie maléfique","Ceremony of the Wicked"]
[null,126,"A faire","Lapis","Gronoa","Gronoa","Ville souterraine de Gaberada","Une beauté éthérée","An Otherworldly Beauty"]
[null,127,"A faire","Lapis","Gronoa","Gronoa","Ville souterraine de Gaberada","Le baiser d'une demoiselle","A Young Lady's Kiss"]
[null,128,"A faire","Lapis","Gronoa","Gronoa","Ville souterraine de Gaberada","La punition de Pavlo","Pavlo's Punishment"]
[null,129,"A faire","Lapis","Gronoa","Gronoa","Ville souterraine de Gaberada","L'ambition d'un marchand","The Merchant's Ambition"]
[null,130,"A faire","Lapis","Gronoa","Gronoa","Ville souterraine de Gaberada","Fort comme un sanglier","What Makes a Hog"]
[null,{"$f":"B133+1","v":131},"A faire","Lapis","Gronoa","Gronoa","Ville souterraine de Gaberada","Aventure avec un vieil ami","Adventure with an Old Friend"]
[null,132,"A faire","Lapis","Gronoa","Gronoa","Ville souterraine de Gaberada","Le légendaire Raven","The Legendary Raven"]
[null,133,"A faire","Lapis","Gronoa","Gronoa","Passage souterrain de Ruggles - exploration","Les quatre frères","The Four Annoying Siblings"]
[null,134,"A faire","Lapis","Gronoa","Gronoa","Passage souterrain de Ruggles - exploration","Un tunnel vers demain","Tunnel to Tomorrow"]
[null,135,"A faire","Lapis","Gronoa","Gronoa","Village de Dugggle","On est jamais trop prudent","A Stitch in Time Saves Nine"]
[null,136,"A faire","Lapis","Pharm","Pharm","Bambouseraie brumeuse - exploration","Chercher des bambous dans le brouillard","Bamboo Shoots in the Mist"]
[null,137,"A faire","Lapis","Pharm","Pharm","Ville de Sian","L'esprit guerrier légendaire","Shiny and Bright"]
[null,138,"A faire","Lapis","Pharm","Pharm","Ville de Sian","Le manju ultime","The Fabled Warrior Spirit"]
[null,139,"A faire","Lapis","Pharm","Pharm","Ville de Sian","Brillant et reluisant","Manju Supreme"]
[null,140,"A faire","Lapis","Pharm","Pharm","Ville de Sian","La statue mystérieuse","The Mysterious Statue"]
[null,141,"A faire","Lapis","Pharm","Pharm","Murs oubliés - exploration","Protéger des murs quasi-détruits","Defend the Falling Walls"]
[null,142,"A faire","Lapis","Terre des cristaux","Terre des cristaux","Exploration de la Cave céleste","Le voeu d'une vision","The Vision's Wish"]
[null,143,"A faire","Lapis","Terre des cristaux","Terre des cristaux","Exploration de la Cave céleste","Perdu dans une caverne de cristaux","Lost in the Cave of Crystals"]
[null,144,"A faire","Lapis","Terre des cristaux","Terre des cristaux","Ville des illusions","L'abominable guerrier de pierre","The Abominable Stone Warrior"]
[null,145,"A faire","Lapis","Terre des cristaux","Terre des cristaux","Ville des illusions","L'objet de mon affection","My Object of Affection"]
[null,146,"A faire","Lapis","Terres errantes","Terres errantes","Volcan enragé - Exploration","Un souvenir à protéger ","A Memory to Protect"]
[null,147,"A faire","Lapis","Terres errantes","Terres errantes","Volcan enragé - Exploration","Élément mystère","Elemental Mystery"]
[null,148,"A faire","Lapis","Terres errantes","Terres errantes","Ville des mogs","Livraison de boisson","Drinking Competition, Kupo!"]
[null,149,"A faire","Vortex","Au-delà","Au-delà","Exploration de l'Au-delà","Trouver les mogs apprentis","Find the Moogle Apprentices"]
[null,150,"A faire","Vortex","Au-delà","Au-delà","Exploration de l'Au-delà","Rassemblement avec les mogs apprentis","Gather the Moogle Apprentices"]
[null,151,"A faire","Vortex","Au-delà","Au-delà","Exploration de l'Au-delà","A la recherche des noix Kupo","In Search of Kupo Nuts"]
[null,152,"A faire","Vortex","Au-delà","Au-delà","Exploration de l'Au-delà","Le fameux monoï","The Illusive Superslick"]
[null,153,"A faire","Vortex","Au-delà","Au-delà","Exploration de l'Au-delà","La malédiction du démon terrifiant","The Demon's Fearful Curse"]
[null,154,"A faire","Vortex","Au-delà","Au-delà","Exploration de l'Au-delà","Ingrédients pour un remède mystérieux","Ingredients for a Mysterious Cure"]
[null,155,"A faire","Vortex","Au-delà","Au-delà","Exploration de l'Au-delà","Attaque des bêtes","Attack of the Beasts"]
[null,156,"A faire","Vortex","Event","Event(Ville rose)","À la recherche de la véritable force","Ce que cherche Ayaka 1","Ayaka's Search 1"]
[null,157,"A faire","Vortex","Event","Event(Ville rose)","À la recherche de la véritable force","Ce que cherche Ayaka 2","Ayaka's Search 2"]
[null,158,"A faire","Vortex","Event","Event(Ville rose)","À la recherche de la véritable force","Mission de patrouille anti-monstre","Monster Patrol Duty"]
[null,159,"A faire","Vortex","Event","Event(Ville rose)","À la recherche de la véritable force","L'entrainement de Goken","Goken's Training"]
[null,160,"A faire","Vortex","Event","Event(Ville rose)","À la recherche de la véritable force","Faire face au passé","Confronting the Past"]
[null,161,"A faire","Vortex","Event","Event(Ville rose)","À la recherche de la véritable force","Combat intérieur","The Fight Within"]
[null,162,"A faire","Lapis","Royaume du Roi Dragon","Royaume du Roi Dragon","Exploration du Royaume du Roi Dragon","L'éclair du forgeron","Searching for Inspiration"]
[null,163,"A faire","Lapis","Royaume du Roi Dragon","Royaume du Roi Dragon","Exploration du Royaume du Roi Dragon","Allez sur l'île flottant dans les airs - défi","Floating Island Challenge"]
[null,164,"A faire","Lapis","Royaume du Roi Dragon","Royaume du Roi Dragon","Exploration de Dernière frontière","Le dernier souci","The Last Concern"]
[null,165,"A faire","Paladia","Georl","Georl","Dragonia","Vêtement de bonne qualité","Cloth of Good Will"]
[null,166,"A faire","Paladia","Georl","Georl","Dragonia","Peste d'insectes","Pest With A Bug"]
[null,167,"A faire","Paladia","Georl","Georl","Dragonia","Un repas délicieux","A Delicious Meal"]
[null,168,"A faire","Paladia","Georl","Georl","Dragonia","Futur dragonnier","A Future Dragoon"]
[null,169,"A faire","Paladia","Georl","Georl","Dragonia","Le dragonnier occupé","The Busy Dragoon"]
[null,170,"A faire","Paladia","Georl","Georl","Exploration du camps de travail - Intérieur","Prison pour gens perdus","Prison for the Lost"]
[null,171,"A faire","Paladia","Georl","Georl","Exploration du camps de travail - Intérieur","Transaction facile","Smooth Transaction"]
[null,172,"A faire","Paladia","Georl","Georl","Colonnie de Luzell","Protection des livres interdits","Protect the Forbidden Literature"]
[null,173,"A faire","Paladia","Georl","Georl","Colonnie de Luzell","Vérifier les rails","Checking the Tracks"]
[null,174,"A faire","Paladia","Georl","Georl","Cité industrielle de Dormdry","Le petit espion","The Littlest Spy"]
[null,175,"A faire","Paladia","Georl","Georl","Cité industrielle de Dormdry","Courir après le chiot","After the Little Puppy"]
[null,176,"A faire","Paladia","Georl","Georl","Cité industrielle de Dormdry","Collection d'ordures","Garbage Collection"]
[null,177,"A faire","Paladia","Georl","Georl","Cité industrielle de Dormdry","Le travailleur aux yeux rouges","The Red Eyed Worker"]
[null,178,"A faire","Paladia","Gungan","Gungan","Naturia, capitale de la nature","Sécuriser la source","Acquiring the Source"]
[null,179,"A faire","Paladia","Gungan","Gungan","Naturia, capitale de la nature","Une chasse pleine d'imprévus","Hunting Problems "]
[null,180,"A faire","Paladia","Gungan","Gungan","Naturia, capitale de la nature","Préparation des festivités","Preparing the Feast"]
[null,181,"A faire","Paladia","Gungan","Gungan","Naturia, capitale de la nature","Preuve de courage","Proof of Bravery"]
[null,182,"A faire","Paladia","Gungan","Gungan","Naturia, capitale de la nature","Le frère piégé","Brother in a Trap "]
[null,183,"A faire","Paladia","Gungan","Gungan","Estavilla","Dur à avaler","Hard to Swallow"]
[null,184,"A faire","Paladia","Gungan","Gungan","Estavilla","la vie d'un raté","Life of a Ruffian "]
[null,185,"A faire","Paladia","Gungan","Gungan","Estavilla","Réparer la machine cassée","Fix the Broken Machine"]
[null,186,"A faire","Paladia","Gungan","Gungan","Estavilla","Découverte technologique","Further Developments"]
[null,187,"A faire","Paladia","Gungan","Gungan","Ville de Tooke","Chasseur de pièces","Parts Hunter"]
[null,188,"A faire","Paladia","Cristalis","Cristalis","Anabeth, ville de poussière","Perdu par l'aventurier","Lost by the Adventurer"]
[null,189,"A faire","Paladia","Cristalis","Cristalis","Anabeth, ville de poussière","Chasseur de matériaux","Materials Hunter"]
[null,190,"A faire","Paladia","Cristalis","Cristalis","Village de Kappa","Nettoyage de monstres","Monster Cleanup"]
[null,191,"A faire","Paladia","Cristalis","Cristalis","Village de Kappa","Eaux miraculeuses","Miraculous Waters"]
[null,192,"A faire","Paladia","Cristalis","Cristalis","Ville d'Ilteah","Cible : danger","Target: Danger"]
[null,193,"A faire","Paladia","Cristalis","Cristalis","Ville d'Ilteah","À la recherche de matériaux","Going after Materials"]
[null,194,"A faire","Paladia","Cristalis","Cristalis","Ville d'Ilteah","L'aventurier en retard","The Late-Returning Adventurer"]
[null,195,"A faire","Paladia","Cristalis","Cristalis","Capitale du désespoir Hellstya","Sauveurs du monde","World Savers "]
[null,{"$f":"B198+1","v":196},"A faire","Paladia","Cristalis","Cristalis","Capitale du désespoir Hellstya","Sortons de là !","Let's Get Outta Here "]
[null,197,"A faire","Paladia","Cristalis","Cristalis","Capitale du désespoir Hellstya","Le vrai trésor","The True Treasure "]
[null,198,"A faire","Paladia","Cristalis","Cristalis","Capitale du désespoir Hellstya","Produit rival","Rival Products "]
[null,199,"A faire","Paladia","Cristalis","Cristalis","Capitale du désespoir Hellstya","Première course","First Errand"]
[null,200,"A faire","Paladia","Cristalis","Cristalis","Village de Pochad","J'aime quand ça brille","I Like it Sparkly"]
[null,201,"A faire","Paladia","Cristalis","Visectrum","Cité des épreuves Dendalio","Le désir de l'artiste de rue","Wish of the Street Performer "]
[null,202,"A faire","Paladia","Cristalis","Visectrum","Cité des épreuves Dendalio","Uniquement les bons ingrédients","Only the Best Ingredients "]
[null,203,"A faire","Paladia","Cristalis","Visectrum","Cité des épreuves Dendalio","Preuve de force","Proof of Strength "]
[null,204,"A faire","Paladia","Cristalis","Visectrum","Cité des épreuves Dendalio","Négociations avec Éléonore","Business with Eleanor "]
[null,205,"A faire","Paladia","Cristalis","Visectrum","Karvell, ville saisonnière","Pour la ville","For the Town "]
[null,206,"A faire","Paladia","Cristalis","Visectrum","Karvell, ville saisonnière","Le goût des rêves","The Flavor of Dreams "]
[null,207,"A faire","Paladia","Cristalis","Visectrum","Karvell, ville saisonnière","En recherche de courage","In Search of Bravery "]
[null,208,"A faire","Paladia","Cristalis","Visectrum","Karvell, ville saisonnière","Que la fête commence","Let's Play! "]
[null,209,"A faire","Paladia","Cristalis","Visectrum","Vallée de l'effroi","Aide-moi !","Help Me! "]

{"sheet":"Magilithe-Mégalithes","index":1,"n_rows":28,"n_cols":6,"rows_kept":28}
[]
[null,"Niveau","Nom français","Nom anglais","EXP gagné","Chimère ayant un bonus EXP x 1,5\n(noms en anglais)"]
[null,1,"Eclat de magilithe","Magicite Shard",100,"-"]
[null,2,"Magilithe","Magicite",300,"-"]
[null,2,"Magilithe rouge","Red Magicite",600,"Ifrit, Phoenix"]
[null,2,"Magilithe bleue","Blue Magicite",600,"Siren, Leviathan, Anima (unreleased) "]
[null,2,"Magilithe verte","Green Magicite",600,"Tetra Sylphid, Leviathan"]
[null,2,"Magilithe blanche","Blanche Magicite",600,"Carbuncle, Alexander"]
[null,2,"Magilithe noire","Noire Magicite",600,"Diabolos, Fenrir, Anima (unreleased) "]
[null,2,"Magilithe jaune","Jaune Magicite",600,"Ramuh, Alexander,"]
[null,2,"Magilithe orange","Orange Magicite",600,"Golem, Titan, Phoenix"]
[null,2,"Magilithe violette","Violet Magicite",600,"Shiva, Fenrir"]
[null,3,"Mégalithe rouge","Red Megacite",{"v":1200,"d":"1,200"},{"$f":"F$5","v":"Ifrit, Phoenix"}]
[null,3,"Mégalithe bleue","Blue Megacite",{"v":1200,"d":"1,200"},{"$f":"F$6","v":"Siren, Leviathan, Anima (unreleased) "}]
[null,3,"Mégalithe verte","Green Megacite",{"v":1200,"d":"1,200"},{"$f":"F$7","v":"Tetra Sylphid, Leviathan"}]
[null,3,"Mégalithe blanche","Blanche Megacite",{"v":1200,"d":"1,200"},{"$f":"F$8","v":"Carbuncle, Alexander"}]
[null,3,"Mégalithe noire","Noire Megacite",{"v":1200,"d":"1,200"},{"$f":"F$9","v":"Diabolos, Fenrir, Anima (unreleased) "}]
[null,3,"Mégalithe jaune","Jaune Megacite",{"v":1200,"d":"1,200"},{"$f":"F$10","v":"Ramuh, Alexander,"}]
[null,3,"Mégalithe orange","Orange Megacite",{"v":1200,"d":"1,200"},{"$f":"F$11","v":"Golem, Titan, Phoenix"}]
[null,3,"Mégalithe violette","Violet Megacite",{"v":1200,"d":"1,200"},{"$f":"F$12","v":"Shiva, Fenrir"}]
[null,4,"Gigalithe rouge","Red Supercite ",{"v":24000,"d":"24,000"},{"$f":"F$5","v":"Ifrit, Phoenix"}]
[null,4,"Gigalithe bleue","Blue Supercite ",{"v":24000,"d":"24,000"},{"$f":"F$6","v":"Siren, Leviathan, Anima (unreleased) "}]
[null,4,"Gigalithe verte","Green Supercite ",{"v":24000,"d":"24,000"},{"$f":"F$7","v":"Tetra Sylphid, Leviathan"}]
[null,4,"Gigalithe blanche","White Supercite ",{"v":24000,"d":"24,000"},{"$f":"F$8","v":"Carbuncle, Alexander"}]
[null,4,"Gigalithe noire","Black Supercite ",{"v":24000,"d":"24,000"},{"$f":"F$9","v":"Diabolos, Fenrir, Anima (unreleased) "}]
[null,4,"Gigalithe jaune","Yellow Supercite ",{"v":24000,"d":"24,000"},{"$f":"F$10","v":"Ramuh, Alexander,"}]
[null,4,"Gigalithe orange","Orange Supercite ",{"v":24000,"d":"24,000"},{"$f":"F$11","v":"Golem, Titan, Phoenix"}]
[null,4,"Gigalithe violette","Violet Supercite ",{"v":24000,"d":"24,000"},{"$f":"F$12","v":"Shiva, Fenrir"}]